[Event "106th British-ch Major 2019"]
[Site "Torquay"]
[Date "2019.07.31"]
[Round "5.23"]
[White "Pink, Joshua"]
[Black "Liu, Jack"]
[Result "1/2-1/2"]
[ECO "A03"]
[WhiteElo "1907"]
[BlackElo "1259"]
[Annotator "NA"]
[PlyCount "132"]
[EventDate "2019.07.27"]
[EventType "swiss"]
[EventCountry "GBR"]
[SourceTitle "playchess.com"]
[Source "ChessBase"]
[SourceQuality "1"]
[TimeControl "40/5400+30:1800+30"]

1. f4 {[%emt 0:00:39]} Nf6 {[%emt 0:00:00]} 2. Nf3 {[%emt 0:00:15]} g6 {[%emt 0:00:00]} 3. d3 {[%emt 0:00:17]} d5 {[%emt 0:00:00]} 4. e3 {[%emt 0:00:06]} c5 {[%emt 0:00:00]} 5. Be2 {[%emt 0:00:08]} Bg7 {[%emt 0:00:00]} 6. O-O {[%emt 0:00:13]} O-O {[%emt 0:00:00]} 7. Nc3 {[%emt 0:00:11]} Nc6 {[%emt 0:00:03]} 8. e4 {[%emt 0:00:18]} d4 {[%emt 0:00:04]} 9. Nb1 {[%emt 0:00:07]} Ng4 {[%emt 0:00:29]} 10. a4 {[%emt 0:03:58]} Ne3 {[%emt 0:03:18]} 11. Bxe3 {[%emt 0:00:15]} dxe3 {[%emt 0:00:04]} 12. c3 {[%emt 0:00:29]} Bh6 {[%emt 0:07:00]} 13. g3 {[%emt 0:11:26]} e5 {[%emt 0:18:06]} 14. Nxe5 {[%emt 0:03:55]} Nxe5 {[%emt 0:00:16]} 15. fxe5 {[%emt 0:00:11]} Qc7 {[%emt 0:00:20]} 16. d4 {[%emt 0:03:31]} Bh3 {[%emt 0:04:49]} 17. Re1 {[%emt 0:02:12]} Rad8 {[%emt 0:01:54]} 18. Na3 {[%emt 0:02:14]} cxd4 {[%emt 0:01:08]} 19. cxd4 {[%emt 0:01:11]} Qb6 {[%emt 0:03:12]} 20. Nb5 {[%emt 0:02:49]} a6 {[%emt 0:00:32]} 21. Nd6 {[%emt 0:01:51]} f6 {[%emt 0:02:16]} 22. a5 {[%emt 0:05:11]} Qc7 {[%emt 0:04:05]} 23. Rc1 {[%emt 0:03:10]} Qe7 {[%emt 0:01:22]} 24. Qb3+ {[%emt 0:04:17]} Kh8 {[%emt 0:01:13]} 25. Qxb7 {[%emt 0:04:37]} Qxb7 {[%emt 0:00:12]} 26. Nxb7 {[%emt 0:00:07]} Rxd4 {[%emt 0:00:04]} 27. exf6 {[%emt 0:00:15]} Rxf6 {[%emt 0:00:13]} 28. Nc5 {[%emt 0:05:07]} Rd2 {[%emt 0:01:30]} 29. Nd3 {[%emt 0:06:12]} Rd6 {[%emt 0:05:44]} 30. Rcd1 {[%emt 0:01:41]} Rd4 {[%emt 0:02:38]} 31. b4 {[%emt 0:03:25]} Rxe4 {[%emt 0:04:19]} 32. b5 {[%emt 0:00:36]} axb5 {[%emt 0:05:27]} 33. Ra1 {[%emt 0:01:24]} Ra4 {[%emt 0:04:23]} 34. Rxa4 {[%emt 0:02:26]} bxa4 {[%emt 0:00:23]} 35. a6 {[%emt 0:01:02]} Bc8 {[%emt 0:00:18]} 36. Nc5 {[%emt 0:01:07]} Bxa6 {[%emt 0:01:59]} 37. Bc4 {[%emt 0:04:05]} Bb5 38. Bxb5 {[%emt 0:00:31]} Rd4 {[%emt 0:01:05]} 39. Ba6 Rd5 {[%emt 0:01:00]} 40. Ne6 {[%emt 0:02:59]} Ra5 {[%emt 0:00:28]} 41. Bc4 {[%emt 0:30:28]} a3 {[%emt 0:30:47]} 42. Ba2 {[%emt 0:04:51]} Rf5 {[%emt 0:03:43]} 43. Re2 {[%emt 0:01:15]} Rb5 {[%emt 0:01:55]} 44. g4 {[%emt 0:03:09]} Rb4 {[%emt 0:01:26]} 45. h3 {[%emt 0:00:23]} Rb5 {[%emt 0:00:33]} 46. Kg2 {[%emt 0:00:20]} Re5 {[%emt 0:00:32]} 47. h4 {[%emt 0:02:36]} Re4 {[%emt 0:01:07]} 48. Kf3 {[%emt 0:01:39]} Re5 {[%emt 0:00:08]} 49. g5 {[%emt 0:03:14]} Bg7 {[%emt 0:00:40]} 50. Rc2 {[%emt 0:07:47]} h6 {[%emt 0:00:50]} 51. Nxg7 {[%emt 0:04:02]} Kxg7 {[%emt 0:00:13]} 52. gxh6+ {[%emt 0:00:00]} Kxh6 {[%emt 0:00:00]} 53. Ke2 {[%emt 0:00:00]} Re4 {[%emt 0:00:00]} 54. Bd5 {[%emt 0:00:00]} Rxh4 {[%emt 0:00:00]} 55. Kxe3 {[%emt 0:00:00]} Ra4 {[%emt 0:00:00]} 56. Ra2 {[%emt 0:00:00]} Kg7 {[%emt 0:00:00]} 57. Kd3 {[%emt 0:00:00]} Kf6 {[%emt 0:00:00]} 58. Kc3 {[%emt 0:00:00]} Ke5 {[%emt 0:00:00]} 59. Bb3 {[%emt 0:00:00]} Ra7 {[%emt 0:00:00]} 60. Kb4 {[%emt 0:00:00]} g5 {[%emt 0:00:00]} 61. Ba4 {[%emt 0:00:00]} g4 {[%emt 0:00:00]} 62. Kxa3 {[%emt 0:00:00]} g3 {[%emt 0:00:00]} 63. Kb3 {[%emt 0:00:00]} Kf4 {[%emt 0:00:00]} 64. Rg2 {[%emt 0:00:00]} Rxa4 {[%emt 0:00:00]} 65. Kxa4 {[%emt 0:00:00]} Kf3 {[%emt 0:00:00]} 66. Rxg3+ {[%emt 0:00:00]} Kxg3 {[%emt 0:00:00]} 1/2-1/2

[Event "106th British-ch Major 2019"]
[Site "Torquay"]
[Date "2019.07.31"]
[Round "5.24"]
[White "Robertson, Jim"]
[Black "Rice, Chris B"]
[Result "0-1"]
[ECO "A45"]
[WhiteElo "1580"]
[BlackElo "2040"]
[Annotator "NA"]
[PlyCount "36"]
[EventDate "2019.07.27"]
[EventType "swiss"]
[EventCountry "GBR"]
[SourceTitle "playchess.com"]
[Source "ChessBase"]
[SourceQuality "1"]
[TimeControl "40/5400+30:1800+30"]

1. d4 {[%emt 0:00:00]} Nf6 {[%emt 0:08:21]} 2. e3 {[%emt 0:00:00]} g6 {[%emt 0:00:22]} 3. f4 {[%emt 0:00:00]} Bg7 {[%emt 0:00:06]} 4. Nf3 {[%emt 0:00:00]} O-O {[%emt 0:00:13]} 5. c3 {[%emt 0:00:05]} d6 {[%emt 0:00:15]} 6. Bc4 {[%emt 0:00:39]} c5 {[%emt 0:00:20]} 7. O-O {[%emt 0:00:53]} Qc7 {[%emt 0:00:07]} 8. Nbd2 {[%emt 0:03:41]} Nc6 {[%emt 0:01:07]} 9. Qe2 {[%emt 0:03:04]} e5 {[%emt 0:01:55]} 10. fxe5 {[%emt 0:02:43]} dxe5 {[%emt 0:00:20]} 11. dxc5 {[%emt 0:02:40]} e4 {[%emt 0:16:39]} 12. Nh4 {[%emt 0:22:49]} Ne5 {[%emt 0:09:39]} 13. b4 {[%emt 0:05:57]} Bg4 {[%emt 0:11:26]} 14. Qf2 {[%emt 0:04:10]} Rad8 {[%emt 0:05:02]} 15. Qf4 {[%emt 0:05:32]} Qe7 {[%emt 0:06:58]} 16. Nxe4 {[%emt 0:04:33]} Nh5 {[%emt 0:02:13]} 17. Qf2 {[%emt 0:18:51]} Nxc4 {[%emt 0:01:01]} 18. Ng3 {[%emt 0:01:30]} Qxh4 {[%emt 0:00:36]} 0-1

[Event "106th British-ch Major 2019"]
[Site "Torquay"]
[Date "2019.07.31"]
[Round "5.25"]
[White "Mueller, Jens"]
[Black "Rathbone-Jones, Ifan"]
[Result "0-1"]
[ECO "B13"]
[WhiteElo "1965"]
[BlackElo "1855"]
[Annotator "NA"]
[PlyCount "66"]
[EventDate "2019.07.27"]
[EventType "swiss"]
[EventCountry "GBR"]
[SourceTitle "playchess.com"]
[Source "ChessBase"]
[SourceQuality "1"]
[TimeControl "40/5400+30:1800+30"]

1. d4 {[%emt 0:00:00]} e6 {[%emt 0:00:00]} 2. Bf4 {[%emt 0:00:00]} d5 {[%emt 0:00:00]} 3. e3 {[%emt 0:00:28]} Nf6 {[%emt 0:00:32]} 4. Nd2 {[%emt 0:01:01]} c5 {[%emt 0:06:00]} 5. c3 {[%emt 0:00:43]} Nc6 {[%emt 0:02:08]} 6. Bd3 {[%emt 0:00:55]} cxd4 {[%emt 0:04:40]} 7. exd4 {[%emt 0:00:19]} Bd6 {[%emt 0:00:25]} 8. Bxd6 {[%emt 0:08:41]} Qxd6 {[%emt 0:00:02]} 9. Ngf3 {[%emt 0:00:12]} O-O {[%emt 0:02:07]} 10. O-O {[%emt 0:00:15]} e5 {[%emt 0:04:49]} 11. dxe5 {[%emt 0:00:11]} Nxe5 {[%emt 0:00:12]} 12. Nxe5 {[%emt 0:00:09]} Qxe5 {[%emt 0:00:06]} 13. Nf3 {[%emt 0:02:59]} Qc7 {[%emt 0:02:07]} 14. Qc2 {[%emt 0:03:01]} Bg4 {[%emt 0:05:51]} 15. Nd4 {[%emt 0:01:02]} g6 {[%emt 0:02:46]} 16. h3 {[%emt 0:04:16]} Bd7 {[%emt 0:00:23]} 17. f4 {[%emt 0:11:19]} Nh5 {[%emt 0:05:49]} 18. f5 {[%emt 0:03:57]} Nf4 {[%emt 0:02:41]} 19. Rf3 {[%emt 0:03:03]} Rae8 {[%emt 0:08:59]} 20. Raf1 {[%emt 0:02:06]} g5 {[%emt 0:18:32]} 21. f6 {[%emt 0:14:55]} h6 {[%emt 0:01:37]} 22. Rxf4 {[%emt 0:07:33]} gxf4 {[%emt 0:00:24]} 23. Qd2 {[%emt 0:00:10]} Re3 {[%emt 0:02:50]} 24. Bf5 {[%emt 0:03:51]} Be6 {[%emt 0:08:42]} 25. Qd1 {[%emt 0:01:35]} f3 {[%emt 0:05:53]} 26. Rxf3 {[%emt 0:07:31]} Qe5 {[%emt 0:01:11]} 27. Rf1 {[%emt 0:02:38]} Bxf5 {[%emt 0:03:23]} 28. Nxf5 {[%emt 0:02:20]} Re2 {[%emt 0:01:07]} 29. Qc1 {[%emt 0:03:31]} Qe4 {[%emt 0:01:01]} 30. Ne7+ {[%emt 0:09:18]} Kh7 {[%emt 0:00:28]} 31. Qb1 {[%emt 0:00:43]} Rxg2+ {[%emt 0:00:08]} 32. Kh1 {[%emt 0:00:06]} Rc2+ {[%emt 0:00:07]} 33. Kg1 {[%emt 0:00:07]} Qg2# {[%emt 0:00:07]} 0-1

[Event "106th British-ch Major 2019"]
[Site "Torquay"]
[Date "2019.07.31"]
[Round "5.26"]
[White "Wilson, Matthew R"]
[Black "Chapman, Matt"]
[Result "1/2-1/2"]
[ECO "B13"]
[WhiteElo "1817"]
[BlackElo "1957"]
[Annotator "NA"]
[PlyCount "104"]
[EventDate "2019.07.27"]
[EventType "swiss"]
[EventCountry "GBR"]
[SourceTitle "playchess.com"]
[Source "ChessBase"]
[SourceQuality "1"]
[TimeControl "40/5400+30:1800+30"]

1. e4 {[%emt 0:00:00]} c6 {[%emt 0:00:00]} 2. d4 {[%emt 0:00:00]} d5 {[%emt 0:00:00]} 3. exd5 {[%emt 0:00:00]} cxd5 {[%emt 0:00:00]} 4. Bd3 {[%emt 0:00:00]} Nc6 {[%emt 0:00:02]} 5. c3 {[%emt 0:00:00]} Qc7 {[%emt 0:00:36]} 6. Ne2 {[%emt 0:00:00]} Bg4 {[%emt 0:00:33]} 7. O-O {[%emt 0:00:06]} Nf6 {[%emt 0:00:39]} 8. f3 {[%emt 0:03:41]} Bd7 {[%emt 0:06:02]} 9. Bf4 {[%emt 0:01:37]} e5 {[%emt 0:01:00]} 10. dxe5 {[%emt 0:05:34]} Nxe5 {[%emt 0:00:14]} 11. Re1 {[%emt 0:00:52]} O-O-O {[%emt 0:04:57]} 12. Na3 {[%emt 0:12:29]} Bd6 {[%emt 0:05:08]} 13. Nb5 {[%emt 0:11:40]} Bxb5 {[%emt 0:01:16]} 14. Bxb5 {[%emt 0:00:17]} a6 {[%emt 0:05:26]} 15. Bxe5 {[%emt 0:10:25]} Bxe5 {[%emt 0:01:06]} 16. Bd3 {[%emt 0:06:03]} Bxh2+ {[%emt 0:01:24]} 17. Kh1 {[%emt 0:00:01]} h5 {[%emt 0:03:34]} 18. Bf5+ {[%emt 0:16:07]} Kb8 {[%emt 0:00:15]} 19. Qd4 {[%emt 0:00:35]} Bd6 {[%emt 0:09:51]} 20. b4 {[%emt 0:01:29]} Rde8 {[%emt 0:10:43]} 21. Qd2 {[%emt 0:07:07]} h4 {[%emt 0:10:49]} 22. Nd4 {[%emt 0:02:22]} Bf4 {[%emt 0:03:34]} 23. Qd3 {[%emt 0:02:01]} Nh5 {[%emt 0:03:40]} 24. Bh3 {[%emt 0:05:15]} g6 {[%emt 0:04:54]} 25. Rab1 {[%emt 0:04:20]} Bg3 {[%emt 0:04:10]} 26. Rxe8+ {[%emt 0:00:52]} Rxe8 {[%emt 0:00:06]} 27. Ne2 {[%emt 0:00:45]} Bf2 {[%emt 0:02:03]} 28. g4 {[%emt 0:06:07]} Ng3+ {[%emt 0:06:45]} 29. Nxg3 {[%emt 0:00:22]} Qxg3 {[%emt 0:00:13]} 30. Qf1 {[%emt 0:01:45]} Bb6 {[%emt 0:02:05]} 31. Qg2 {[%emt 0:01:25]} Re1+ {[%emt 0:01:59]} 32. Rxe1 {[%emt 0:00:03]} Qxe1+ {[%emt 0:00:06]} 33. Qf1 {[%emt 0:00:16]} Qxc3 {[%emt 0:00:52]} 34. b5 {[%emt 0:01:47]} a5 {[%emt 0:01:26]} 35. Bg2 {[%emt 0:01:02]} d4 {[%emt 0:03:05]} 36. f4 {[%emt 0:00:47]} d3 {[%emt 0:01:10]} 37. Qf3 {[%emt 0:00:25]} Qe1+ {[%emt 0:00:53]} 38. Kh2 {[%emt 0:00:15]} Qg3+ {[%emt 0:01:59]} 39. Qxg3 {[%emt 0:00:04]} hxg3+ {[%emt 0:00:04]} 40. Kxg3 {[%emt 0:00:03]} d2 {[%emt 0:04:15]} 41. Bf3 {[%emt 0:02:19]} Kc7 {[%emt 0:02:10]} 42. a4 {[%emt 0:00:32]} Kd6 {[%emt 0:00:54]} 43. Bd1 {[%emt 0:01:35]} f5 {[%emt 0:01:43]} 44. gxf5 {[%emt 0:00:54]} gxf5 {[%emt 0:00:18]} 45. Kf3 {[%emt 0:02:30]} Kd5 {[%emt 0:00:23]} 46. Ke2 {[%emt 0:00:40]} Ke4 {[%emt 0:00:17]} 47. Kxd2 {[%emt 0:00:19]} Kxf4 {[%emt 0:00:06]} 48. Ke2 {[%emt 0:01:45]} Bc5 {[%emt 0:00:12]} 49. Bc2 {[%emt 0:05:49]} b6 {[%emt 0:00:07]} 50. Bb1 {[%emt 0:00:28]} Ke5 {[%emt 0:00:17]} 51. Kf3 {[%emt 0:00:46]} f4 {[%emt 0:00:05]} 52. Bc2 {[%emt 0:00:14]} Be3 {[%emt 0:01:20] Ke4+} 1/2-1/2

[Event "106th British-ch Major 2019"]
[Site "Torquay"]
[Date "2019.07.31"]
[Round "5.27"]
[White "Cocks, Elliot"]
[Black "May, Paul"]
[Result "1-0"]
[ECO "B41"]
[WhiteElo "1907"]
[BlackElo "1832"]
[Annotator "NA"]
[PlyCount "111"]
[EventDate "2019.07.27"]
[EventType "swiss"]
[EventCountry "GBR"]
[SourceTitle "playchess.com"]
[Source "ChessBase"]
[SourceQuality "1"]
[TimeControl "40/5400+30:1800+30"]

1. e4 {[%emt 0:00:00]} c5 {[%emt 0:00:00]} 2. Nf3 {[%emt 0:00:18]} a6 {[%emt 0:00:00]} 3. c4 {[%emt 0:00:42]} e6 {[%emt 0:00:15]} 4. Nc3 {[%emt 0:00:57]} Qc7 {[%emt 0:00:23]} 5. d4 {[%emt 0:01:06]} cxd4 {[%emt 0:00:17]} 6. Nxd4 {[%emt 0:00:08]} Nf6 {[%emt 0:00:12]} 7. a3 {[%emt 0:00:16]} d6 {[%emt 0:04:04]} 8. Be3 {[%emt 0:00:23]} b6 {[%emt 0:00:36]} 9. Be2 {[%emt 0:00:13]} Bb7 {[%emt 0:00:20]} 10. f3 {[%emt 0:00:07]} Nbd7 {[%emt 0:00:24]} 11. O-O {[%emt 0:00:42]} Be7 {[%emt 0:00:20]} 12. Rc1 {[%emt 0:03:35]} O-O {[%emt 0:01:09]} 13. Qd2 {[%emt 0:00:54]} Rfe8 {[%emt 0:14:26]} 14. b4 {[%emt 0:02:15]} Ne5 {[%emt 0:06:21]} 15. Na4 {[%emt 0:06:37]} Ned7 {[%emt 0:03:14]} 16. Rfd1 {[%emt 0:02:33]} Qd8 {[%emt 0:15:16]} 17. Bf1 {[%emt 0:07:15]} Bf8 {[%emt 0:08:44]} 18. Qf2 {[%emt 0:02:35]} a5 {[%emt 0:16:58]} 19. Nb5 {[%emt 0:06:24]} axb4 {[%emt 0:03:20]} 20. Nxb6 {[%emt 0:00:23]} Ra6 {[%emt 0:05:42]} 21. Nxd7 {[%emt 0:00:30]} Nxd7 {[%emt 0:00:45]} 22. axb4 {[%emt 0:00:08]} Qb8 {[%emt 0:05:33]} 23. c5 {[%emt 0:02:22]} Rc6 {[%emt 0:01:07]} 24. Nd4 {[%emt 0:00:34]} Rcc8 {[%emt 0:00:44]} 25. c6 {[%emt 0:00:18]} Ne5 {[%emt 0:01:09]} 26. cxb7 {[%emt 0:00:10]} Qxb7 {[%emt 0:00:08]} 27. b5 {[%emt 0:01:20]} d5 {[%emt 0:00:57]} 28. exd5 {[%emt 0:03:01]} exd5 {[%emt 0:00:20]} 29. Qd2 {[%emt 0:01:52]} Nc4 {[%emt 0:02:02]} 30. Bxc4 {[%emt 0:00:08]} dxc4 {[%emt 0:00:16]} 31. Bf2 {[%emt 0:00:41]} Red8 {[%emt 0:03:37]} 32. Qc3 {[%emt 0:05:13]} Rd5 {[%emt 0:01:42]} 33. Re1 {[%emt 0:07:52]} Qb8 {[%emt 0:02:09]} 34. Nc6 {[%emt 0:01:33]} Qxb5 {[%emt 0:00:18]} 35. Qxc4 {[%emt 0:00:28]} Qxc4 {[%emt 0:01:34]} 36. Rxc4 {[%emt 0:00:02]} Ra8 {[%emt 0:01:13]} 37. Ne7+ {[%emt 0:01:05]} Bxe7 {[%emt 0:00:05]} 38. Rxe7 {[%emt 0:00:06]} Rd1+ {[%emt 0:00:35]} 39. Re1 {[%emt 0:00:12]} Rd7 {[%emt 0:00:08]} 40. Rce4 {[%emt 0:01:15]} g6 {[%emt 0:01:21]} 41. Re8+ {[%emt 0:30:19]} Rxe8 {[%emt 0:30:08]} 42. Rxe8+ {[%emt 0:00:06]} Kg7 {[%emt 0:00:16]} 43. Bg3 {[%emt 0:00:53]} Rb7 {[%emt 0:00:00]} 44. Be5+ {[%emt 0:00:00]} f6 {[%emt 0:00:00]} 45. Bd4 {[%emt 0:00:00]} Rc7 {[%emt 0:00:00]} 46. Ra8 {[%emt 0:00:00]} Rc6 {[%emt 0:00:00]} 47. Ra7+ {[%emt 0:00:00]} Kh6 {[%emt 0:00:00]} 48. Be3+ {[%emt 0:00:00]} g5 {[%emt 0:00:00]} 49. h4 {[%emt 0:00:00]} Kg6 {[%emt 0:00:00]} 50. hxg5 {[%emt 0:00:00]} fxg5 {[%emt 0:00:00]} 51. Ra5 {[%emt 0:00:00]} h6 {[%emt 0:00:00]} 52. Rb5 {[%emt 0:00:00]} Kf7 {[%emt 0:00:00]} 53. Rb6 {[%emt 0:00:00]} Re6 {[%emt 0:00:00]} 54. Rxe6 {[%emt 0:00:00]} Kxe6 {[%emt 0:00:00]} 55. Kf2 {[%emt 0:00:00]} Kf5 {[%emt 0:00:00]} 56. g4+ {[%emt 0:00:00]} 1-0

[Event "106th British-ch Major 2019"]
[Site "Torquay"]
[Date "2019.07.31"]
[Round "5.28"]
[White "Ruane, Brendan J"]
[Black "Merriman, James"]
[Result "0-1"]
[ECO "C00"]
[WhiteElo "1904"]
[BlackElo "1808"]
[Annotator "NA"]
[PlyCount "46"]
[EventDate "2019.07.27"]
[EventType "swiss"]
[EventCountry "GBR"]
[SourceTitle "playchess.com"]
[Source "ChessBase"]
[SourceQuality "1"]
[TimeControl "40/5400+30:1800+30"]

1. e4 {[%emt 0:00:00]} e6 {[%emt 0:02:50]} 2. d3 {[%emt 0:00:00]} d5 {[%emt 0:00:05]} 3. Nd2 {[%emt 0:00:00]} Nf6 {[%emt 0:01:29]} 4. Ngf3 {[%emt 0:00:00]} Nc6 {[%emt 0:00:26]} 5. g3 {[%emt 0:00:44]} dxe4 {[%emt 0:00:15]} 6. dxe4 {[%emt 0:00:14]} e5 {[%emt 0:00:23]} 7. Bg2 {[%emt 0:00:45]} Bc5 {[%emt 0:00:41]} 8. O-O {[%emt 0:00:38]} O-O {[%emt 0:00:31]} 9. c3 {[%emt 0:01:48]} a5 {[%emt 0:00:09]} 10. Qc2 {[%emt 0:00:49]} b6 {[%emt 0:01:48]} 11. Nb3 {[%emt 0:09:21]} Bd6 {[%emt 0:01:25]} 12. h3 {[%emt 0:07:10]} Ba6 {[%emt 0:07:59]} 13. Rd1 {[%emt 0:00:21]} a4 {[%emt 0:03:08]} 14. Nbd2 {[%emt 0:00:08]} Qe7 {[%emt 0:01:02]} 15. Bf1 {[%emt 0:00:28]} Bb7 {[%emt 0:07:05]} 16. Bb5 {[%emt 0:05:30]} Nd8 {[%emt 0:05:02]} 17. Nh4 {[%emt 0:12:19]} g6 {[%emt 0:03:31]} 18. Re1 {[%emt 0:02:33]} Ne6 {[%emt 0:01:48]} 19. Bf1 {[%emt 0:00:38]} Nc5 {[%emt 0:00:50]} 20. f3 {[%emt 0:05:51]} Nh5 {[%emt 0:02:55]} 21. Kh2 {[%emt 0:00:48]} Qg5 {[%emt 0:02:01]} 22. Ng2 {[%emt 0:07:48]} Qxg3+ {[%emt 0:00:10]} 23. Kg1 {[%emt 0:00:05]} Nf4 {[%emt 0:01:00]} 0-1

[Event "106th British-ch Major 2019"]
[Site "Torquay"]
[Date "2019.07.31"]
[Round "5.29"]
[White "Sanitt, Ethan"]
[Black "Paulden, Tim"]
[Result "1/2-1/2"]
[ECO "A11"]
[WhiteElo "1752"]
[BlackElo "1902"]
[Annotator "NA"]
[PlyCount "127"]
[EventDate "2019.07.27"]
[EventType "swiss"]
[EventCountry "GBR"]
[SourceTitle "playchess.com"]
[Source "ChessBase"]
[SourceQuality "1"]
[TimeControl "40/5400+30:1800+30"]

1. c4 {[%emt 0:00:00]} Nf6 {[%emt 0:00:00]} 2. g3 {[%emt 0:00:14]} c6 {[%emt 0:00:05]} 3. Bg2 {[%emt 0:01:46]} d5 {[%emt 0:00:13]} 4. Nf3 {[%emt 0:00:50]} Bf5 {[%emt 0:01:18]} 5. O-O {[%emt 0:01:02]} e6 {[%emt 0:00:26]} 6. d3 {[%emt 0:01:43]} Be7 {[%emt 0:02:49]} 7. h3 {[%emt 0:06:34]} h6 {[%emt 0:02:14]} 8. Bf4 {[%emt 0:06:35]} Nbd7 {[%emt 0:05:16]} 9. Nc3 {[%emt 0:04:45]} g5 {[%emt 0:08:27]} 10. Bd2 {[%emt 0:06:10]} Qb6 {[%emt 0:07:05]} 11. Qb3 {[%emt 0:13:43]} Qxb3 {[%emt 0:08:14]} 12. axb3 {[%emt 0:00:08]} Nc5 {[%emt 0:02:22]} 13. Nd4 {[%emt 0:10:45]} Bh7 {[%emt 0:02:54]} 14. Na4 {[%emt 0:05:07]} O-O {[%emt 0:10:24]} 15. Nxc5 {[%emt 0:03:11]} Bxc5 {[%emt 0:00:32]} 16. Nf3 {[%emt 0:02:16]} Nd7 {[%emt 0:06:03]} 17. Bc3 {[%emt 0:02:48]} f6 {[%emt 0:01:57]} 18. b4 {[%emt 0:04:34]} Be7 {[%emt 0:03:01]} 19. Nd4 {[%emt 0:04:01]} Kf7 {[%emt 0:01:32]} 20. b5 {[%emt 0:01:42]} Rfc8 {[%emt 0:07:30]} 21. b3 {[%emt 0:02:07]} Nb6 {[%emt 0:06:53]} 22. Bf3 {[%emt 0:02:22]} Bg6 {[%emt 0:03:32]} 23. bxc6 {[%emt 0:01:56]} bxc6 {[%emt 0:00:25]} 24. Ra6 {[%emt 0:03:16]} e5 {[%emt 0:03:37]} 25. Nxc6 {[%emt 0:03:54]} Rxc6 {[%emt 0:01:22]} 26. Rxb6 {[%emt 0:00:13]} Rxb6 {[%emt 0:03:46]} 27. Bxd5+ {[%emt 0:00:05]} Kf8 {[%emt 0:00:53]} 28. Bxa8 {[%emt 0:00:24]} Rxb3 {[%emt 0:00:18]} 29. Rc1 {[%emt 0:01:02]} a5 {[%emt 0:02:45]} 30. Bd5 {[%emt 0:02:57]} a4 {[%emt 0:01:59]} 31. c5 {[%emt 0:02:53]} Rb5 {[%emt 0:01:57]} 32. d4 {[%emt 0:01:48]} a3 {[%emt 0:01:58]} 33. e4 {[%emt 0:00:35]} exd4 {[%emt 0:00:47]} 34. Bxd4 {[%emt 0:00:13]} a2 {[%emt 0:01:52]} 35. Bxa2 {[%emt 0:01:39]} Bxe4 {[%emt 0:00:17]} 36. c6 {[%emt 0:01:19]} Bf5 {[%emt 0:00:37]} 37. c7 {[%emt 0:00:16]} Bc8 {[%emt 0:00:19]} 38. Bb1 {[%emt 0:01:27]} Bd6 {[%emt 0:00:48]} 39. Be4 {[%emt 0:00:51]} Rb4 {[%emt 0:00:39]} 40. Rd1 {[%emt 0:00:39]} Kg7 {[%emt 0:02:11]} 41. Bxf6+ {[%emt 0:32:09]} Kf7 {[%emt 0:02:46]} 42. Rxd6 {[%emt 0:00:00]} Rxe4 {[%emt 0:00:13]} 43. g4 {[%emt 0:00:00]} Re1+ {[%emt 0:03:37]} 44. Kh2 {[%emt 0:00:00]} Bb7 {[%emt 0:11:18]} 45. f3 {[%emt 0:00:00]} Rc1 {[%emt 0:01:18]} 46. Bd8 {[%emt 0:00:00]} Kg7 {[%emt 0:01:20]} 47. Rb6 {[%emt 0:00:00]} Bc8 {[%emt 0:02:51]} 48. Bf6+ {[%emt 0:00:00]} Kh7 {[%emt 0:01:26]} 49. Be5 {[%emt 0:00:00]} Rc4 {[%emt 0:01:22]} 50. Kg3 {[%emt 0:00:00]} Rc5 {[%emt 0:03:55]} 51. f4 {[%emt 0:00:00]} h5 {[%emt 0:01:15]} 52. Rf6 {[%emt 0:00:20]} gxf4+ {[%emt 0:03:13]} 53. Bxf4 {[%emt 0:00:24]} hxg4 {[%emt 0:00:43]} 54. hxg4 {[%emt 0:00:13]} Kg7 {[%emt 0:00:48]} 55. Rb6 {[%emt 0:01:12]} Rc3+ {[%emt 0:00:15]} 56. Kf2 {[%emt 0:01:28]} Rc2+ {[%emt 0:00:46]} 57. Kf3 {[%emt 0:01:26]} Rc3+ {[%emt 0:00:09]} 58. Kf2 {[%emt 0:01:54]} Rc2+ {[%emt 0:00:09]} 59. Kg3 {[%emt 0:00:46]} Rc3+ {[%emt 0:00:09]} 60. Kh4 {[%emt 0:00:18]} Rc4 {[%emt 0:00:12]} 61. Kg5 {[%emt 0:00:43]} Rc5+ {[%emt 0:00:08]} 62. Kh4 {[%emt 0:00:24]} Rc4 {[%emt 0:00:04]} 63. Kg3 {[%emt 0:01:18]} Rc3+ {[%emt 0:00:30]} 64. Kf2 {[%emt 0:00:46]} 1/2-1/2

[Event "106th British-ch Major 2019"]
[Site "Torquay"]
[Date "2019.07.31"]
[Round "5.30"]
[White "Whitehead, Mark A"]
[Black "Gray, Edward"]
[Result "1/2-1/2"]
[ECO "B25"]
[WhiteElo "1887"]
[BlackElo "1757"]
[Annotator "NA"]
[PlyCount "54"]
[EventDate "2019.07.27"]
[EventType "swiss"]
[EventCountry "GBR"]
[SourceTitle "playchess.com"]
[Source "ChessBase"]
[SourceQuality "1"]
[TimeControl "40/5400+30:1800+30"]

1. e4 {[%emt 0:00:00]} c5 {[%emt 0:00:00]} 2. Nc3 {[%emt 0:00:16]} Nc6 {[%emt 0:00:00]} 3. g3 {[%emt 0:00:30]} g6 {[%emt 0:00:09]} 4. Bg2 {[%emt 0:00:10]} Bg7 {[%emt 0:00:04]} 5. d3 {[%emt 0:00:07]} d6 {[%emt 0:01:59]} 6. Nge2 {[%emt 0:03:07]} Nf6 {[%emt 0:00:00]} 7. Rb1 {[%emt 0:04:12]} O-O {[%emt 0:00:00]} 8. a3 {[%emt 0:04:34]} Nd4 {[%emt 0:02:36]} 9. b4 {[%emt 0:05:35]} e5 {[%emt 0:03:59]} 10. O-O {[%emt 0:04:26]} b6 {[%emt 0:01:32]} 11. f4 {[%emt 0:08:27]} Rb8 {[%emt 0:04:40]} 12. fxe5 {[%emt 0:02:03]} dxe5 {[%emt 0:01:07]} 13. bxc5 {[%emt 0:00:42]} Bg4 {[%emt 0:00:15]} 14. h3 {[%emt 0:02:13]} Bxe2 {[%emt 0:00:32]} 15. Nxe2 {[%emt 0:01:10]} bxc5 {[%emt 0:00:31]} 16. Rxb8 {[%emt 0:06:15]} Qxb8 {[%emt 0:00:13]} 17. Nc3 {[%emt 0:00:34]} h6 {[%emt 0:02:16]} 18. Kh2 {[%emt 0:06:17]} Qc7 {[%emt 0:02:55]} 19. Bxh6 {[%emt 0:01:45]} Bxh6 {[%emt 0:00:57]} 20. Rxf6 {[%emt 0:00:09]} Qa5 {[%emt 0:00:12]} 21. Nd5 {[%emt 0:04:08]} Qxa3 {[%emt 0:01:33]} 22. c3 {[%emt 0:01:58]} Ne6 {[%emt 0:01:29]} 23. Rf2 {[%emt 0:01:08]} a5 {[%emt 0:01:59]} 24. Qb1 {[%emt 0:00:55]} a4 {[%emt 0:08:05]} 25. Ra2 {[%emt 0:03:46]} Qb3 {[%emt 0:04:36]} 26. Rb2 {[%emt 0:05:26]} Qa3 {[%emt 0:00:04]} 27. Ra2 {[%emt 0:04:38]} Qb3 {[%emt 0:00:07]} 1/2-1/2